bitfinex-derivatives/quotes_ETHF0:USTF0_20250518
["timestamp","ask_amount","ask_price","bid_price","bid_amount"]
[1747591102643,0.79623,2511.0,2510.7,7.4864]
[1747591102835,0.79623,2511.0,2510.8,0.79626]
[1747591103035,4.00398,2511.2,2510.7,7.4864]
[1747591103239,3.2078,2511.2,2510.7,7.4864]
[1747591103445,0.79626,2510.9,2510.7,7.4864]
[1747591103643,0.79624,2511.0,2510.8,0.79627]
[1747591103846,0.79625,2510.9,2510.8,0.79627]
[1747591104246,0.79625,2510.9,2510.7,8.28269]
[1747591104649,0.79624,2511.0,2510.8,0.79626]
[1747591104850,0.79627,2510.9,2510.7,8.2827]
[1747591105153,1.99079,2510.7,2510.0,3.2078]
[1747591105342,1.99079,2510.7,2510.3,0.79643]
[1747591105645,3.2078,2510.8,2510.1,7.6393]
[1747591105850,3.2078,2510.5,2509.3,3.2078]
[1747591106041,3.2078,2510.2,2509.6,14.351]
[1747591106245,1.99135,2510.0,2509.2,0.30453925]
[1747591106442,0.79676,2509.3,2509.2,0.30453925]
[1747591106753,3.2078,2509.7,2509.2,1.10131925]
[1747591106952,3.2078,2509.7,2509.2,0.30453925]
[1747591107151,7.1938,2509.4,2507.7,3.2078]
[1747591107450,5.20148,2507.1,2506.7,3.93649719]
[1747591107648,0.79773,2506.3,2505.4,7.7045]
[1747591107850,14.211,2507.0,2505.5,2.36551675]
[1747591107851,3.2078,2505.8,2505.5,2.36551675]
[1747591108047,3.2078,2505.8,2505.6,7.7045]
[1747591108243,3.2078,2505.8,2505.7,3.76720658]
[1747591108646,3.2078,2505.8,2505.7,10.92301189]
[1747591108950,3.2078,2505.8,2505.7,10.12511189]
[1747591109455,3.2078,2505.8,2505.7,10.92301189]
[1747591109752,3.2078,2505.8,2505.7,10.12511189]
[1747591110051,3.2078,2505.8,2505.7,10.92301189]
[1747591110757,3.2078,2505.8,2505.7,10.12511189]
[1747591110945,3.2078,2505.8,2505.7,10.92301189]
[1747591111258,3.2078,2505.8,2505.7,15.92301189]
[1747591112057,3.2078,2505.8,2505.7,10.92301189]
[1747591112459,3.2078,2505.8,2505.7,10.12511189]
[1747591112658,3.2078,2505.8,2505.7,10.92301189]
[1747591113349,4.00567,2505.8,2505.7,0.07981801]
[1747591113947,3.2078,2505.8,2505.7,0.07981801]
[1747591114149,4.00567,2505.8,2505.7,0.07981801]
[1747591115459,8.2078,2505.8,2504.9,14.199]
[1747591115672,1.99439,2506.2,2505.1,1.32187182]
[1747591115673,7.8716,2505.7,2505.1,1.32187182]
[1747591115961,7.8716,2505.7,2505.4,1.32187182]
[1747591116154,3.2078,2505.5,2505.4,0.79798]
[1747591116556,8.2078,2505.5,2504.0,3.2078]
[1747591116761,7.8716,2505.4,2504.6,1.99558]
[1747591117059,3.2078,2504.9,2504.8,0.79819]
[1747591117258,3.2078,2504.9,2504.7,14.204]
[1747591117457,3.2078,2504.9,2504.7,21.36011531]
[1747591117661,4.00596,2504.9,2504.7,20.56190531]
[1747591117957,0.79822,2504.7,2503.9,0.79847]
[1747591118160,7.8716,2504.8,2504.4,14.204]
[1747591118359,3.2078,2504.5,2504.2,7.492]
[1747591118549,3.2078,2504.5,2504.2,6.35790531]
[1747591118550,0.79834,2504.4,2504.2,6.35790531]
[1747591118751,7.7916,2504.4,2503.9,23.07855]
[1747591118956,3.2078,2504.0,2503.5,6.35790531]
[1747591119260,3.2078,2503.6,2503.5,7.15650531]
[1747591119459,3.2078,2503.6,2503.1,22.2841]
[1747591119761,3.2078,2503.6,2503.5,0.7986]
[1747591120260,3.2078,2503.6,2503.2,22.2841]
[1747591120457,3.2078,2503.3,2503.2,8.8748]
[1747591120659,3.2078,2503.3,2503.2,15.23270531]
[1747591120852,3.2078,2503.3,2503.2,8.8748]
[1747591121056,3.2078,2503.3,2503.2,0.7987]
[1747591121468,17.3898,2503.3,2502.4,3.2078]
[1747591121661,0.79885,2502.8,2502.3,0.79897]
[1747591121855,3.2078,2502.5,2502.2,8.0761]
[1747591122161,35.8445,2502.4,2501.0,3.2078]
[1747591122468,3.2078,2497.5,2495.6,24.74497749]
[1747591122758,3.2078,2495.8,2495.7,0.8011]
[1747591123060,3.12766217,2495.6,2495.4,7.73715338]
[1747591123357,3.12766217,2495.6,2494.6,10.05829939]
[1747591123358,0.25265394,2495.1,2494.9,18.622]
[1747591123551,3.2078,2495.0,2494.7,0.73391175]
[1747591123751,3.2078,2494.8,2494.6,7.58441114]
[1747591123956,3.2078,2494.8,2494.6,13.88251645]
[1747591124156,3.058,2495.4,2494.7,19.252]
[1747591124361,3.2078,2494.9,2494.7,19.252]
[1747591124564,6.2658,2495.4,2494.8,3.2078]
[1747591124763,3.2078,2496.4,2495.3,3.2078]
[1747591124958,3.2078,2496.8,2495.7,3.2078]
[1747591125264,3.2078,2496.2,2495.8,0.08013462]
[1747591125559,3.058,2496.4,2495.7,3.2078]
[1747591125560,3.2078,2496.3,2495.7,3.2078]
[1747591125767,3.058,2496.4,2495.5,27.1304]
[1747591126067,3.058,2496.4,2495.4,3.2078]
[1747591126257,0.80206,2492.7,2492.6,1.13529633]
[1747591126462,3.2078,2491.7,2485.7,2.01074]
[1747591126760,3.2078,2491.2,2490.0,6.0208]
[1747591126958,3.2078,2490.7,2489.1,4.63746231]
[1747591127163,3.2078,2490.6,2489.1,27.77240804]
[1747591127364,3.2078,2489.2,2487.7,3.2078]
[1747591127561,3.2078,2488.9,2486.5,3.2078]
[1747591127861,40.281,2491.0,2488.6,0.2538384]
[1747591127862,3.2078,2488.8,2488.6,0.2538384]
[1747591128062,3.2078,2488.8,2487.0,13.425]
[1747591128265,3.2078,2487.4,2487.1,6.0288]
[1747591128457,3.2078,2488.1,2487.0,6.0256]
[1747591128659,3.2078,2489.5,2488.8,0.2538384]
[1747591128858,3.2078,2489.5,2489.4,0.2538384]
[1747591129054,3.2078,2490.0,2489.4,0.2538384]
[1747591129260,0.29984493,2492.1,2487.7,40.345]
[1747591129261,3.058,2489.5,2487.7,40.345]
[1747591129460,3.058,2489.5,2489.3,3.2078]
[1747591129664,3.2078,2490.3,2489.4,0.33417904]
[1747591129862,3.2078,2490.0,2489.9,0.2538384]
[1747591130676,35.965,2491.5,2489.9,0.2538384]
[1747591130677,3.2078,2491.4,2490.4,0.2538384]
[1747591130866,3.2078,2491.4,2490.1,8.0271]
[1747591130867,0.80285,2490.3,2490.1,0.2538384]
[1747591131065,3.2078,2490.5,2489.5,8.0271]
[1747591131373,3.2078,2490.3,2488.4,3.2078]
[1747591131556,3.2078,2490.3,2489.5,6.024]
[1747591131759,1.12535595,2490.7,2489.5,13.5054]
[1747591131961,3.2078,2490.6,2488.9,3.2078]
[1747591132164,0.006,2490.6,2489.7,0.04383563]
[1747591132358,3.2078,2490.3,2489.7,0.04383563]
[1747591132564,0.08030515,2490.5,2489.8,8.0271]
[1747591132761,5.45243559,2491.4,2491.0,8.0271]
[1747591132963,0.006,2492.4,2491.3,11.2349]
[1747591133164,36.06,2493.0,2491.9,3.2078]
[1747591133467,3.2078,2493.3,2492.4,11.2349]
[1747591133667,3.2078,2493.3,2492.4,3.2078]
[1747591133870,3.2078,2493.9,2493.2,8.0271]
[1747591134067,36.06,2494.0,2492.7,8.0271]
[1747591134268,0.396,2493.5,2492.3,3.2078]
[1747591134572,0.006,2494.1,2491.0,3.2078]
[1747591134573,3.2078,2492.5,2491.0,3.2078]
[1747591134765,5.25807961,2493.4,2492.8,8.0271]
[1747591134961,3.2078,2493.9,2492.9,6.0168]
[1747591135167,3.2078,2493.3,2492.9,7.6664]
[1747591135368,3.2078,2493.3,2492.3,3.2078]
[1747591135569,3.2078,2493.0,2492.4,7.6664]
[1747591135966,3.2078,2493.0,2492.5,14.0447]
[1747591136171,3.2078,2493.3,2492.5,6.0176]
[1747591136367,3.2078,2492.9,2488.0,11.35492513]
[1747591136674,3.2078,2492.6,2492.5,8.0271]
[1747591136871,3.2078,2493.2,2492.3,3.2078]
[1747591137076,3.2078,2493.2,2490.7,38.08576]
[1747591137077,3.2078,2493.8,2492.9,8.0271]
[1747591137277,3.2078,2493.8,2493.2,8.0271]
[1747591137570,3.2078,2493.8,2493.7,8.0271]
[1747591137774,3.2078,2493.8,2493.0,14.0173]
[1747591137775,3.2078,2493.8,2493.2,8.0271]
[1747591137974,3.2078,2493.9,2493.1,14.0431]
[1747591138172,3.2078,2493.9,2492.5,3.2078]
[1747591138372,3.2078,2492.6,2490.9,3.2078]
[1747591138569,3.2078,2492.8,2492.4,8.0271]
[1747591138777,3.2078,2493.8,2493.4,8.0271]
[1747591138975,0.80155,2494.3,2493.5,8.0013]
[1747591139278,3.2078,2494.4,2493.7,8.0271]
[1747591139482,3.2078,2494.1,2493.6,6.0144]
[1747591139673,0.80168,2493.9,2493.5,8.0013]
[1747591139872,3.2078,2494.0,2493.5,8.0013]
[1747591140376,3.2078,2494.3,2493.5,6.72243018]
[1747591140676,0.80141,2494.8,2494.2,8.0271]
[1747591140884,3.2078,2494.9,2494.0,8.0271]
[1747591141173,0.80206,2492.7,2492.6,3.2078]
[1747591141374,2.00512,2492.8,2490.9,3.2078]
[1747591141677,3.2078,2491.9,2491.8,0.03383162]
[1747591141978,4.01012,2491.9,2491.8,0.03383162]
[1747591142178,3.2078,2491.1,2482.9,0.00402754]
[1747591142475,3.2078,2487.5,2487.4,7.8e-07]
[1747591142686,3.2078,2485.4,2483.5,3.2078]
[1747591142877,3.2078,2487.2,2486.4,8.0271]
[1747591143074,3.2078,2487.2,2485.3,4.0545]
[1747591143075,3.2078,2486.5,2485.3,4.0545]
[1747591143374,3.1698701,2485.4,2483.8,3.2078]
[1747591143679,3.2078,2485.3,2484.6,0.78240918]
[1747591143874,3.2078,2484.7,2484.5,0.78240918]
[1747591144071,3.2078,2484.7,2483.5,3.2078]
[1747591144072,3.2078,2485.5,2483.5,3.2078]
[1747591144273,3.2078,2484.9,2484.7,8.0271]
[1747591144469,3.2078,2486.8,2486.3,0.78240918]
[1747591144669,0.73565102,2487.1,2486.5,3.2078]
[1747591144869,0.73565102,2487.1,2486.0,3.2078]
[1747591145069,1.53952102,2487.1,2487.0,0.78240918]
[1747591145276,3.2078,2487.6,2486.9,0.78240918]
[1747591145482,3.2078,2487.6,2487.3,0.78240918]
[1747591145673,3.2078,2488.0,2487.3,0.78240918]
[1747591145977,3.2078,2488.0,2486.0,3.2078]
[1747591146278,3.2078,2488.0,2487.5,0.78240918]
[1747591146480,3.2078,2487.6,2487.1,0.78240918]
[1747591146674,3.2078,2487.3,2487.2,0.78240918]
[1747591146883,1.6086609,2487.5,2486.8,11.76021017]
[1747591147178,3.2078,2486.9,2485.4,4.56092481]
[1747591147381,3.2078,2485.5,2483.8,3.2078]
[1747591147582,3.2078,2487.0,2486.0,5.73061017]
[1747591147875,3.2078,2487.0,2486.1,7.637]
[1747591148075,3.2078,2486.3,2483.8,3.2078]
[1747591148280,3.2078,2486.0,2485.5,5.73061017]
[1747591148480,3.2078,2486.0,2485.9,5.73061017]
[1747591148681,3.00024509,2487.3,2485.5,42.4819]
[1747591148682,3.2078,2487.1,2485.5,42.4819]
[1747591148874,3.00024509,2487.3,2486.7,5.73061017]
[1747591149074,1.6084193,2487.2,2486.8,7.7489]
[1747591149275,1.6084193,2487.2,2486.8,13.7801]
[1747591149481,1.6084193,2487.2,2487.1,11.76181017]
[1747591149884,1.6084193,2487.2,2486.8,6.15032639]
[1747591150073,1.6084193,2487.2,2486.8,12.18152639]
[1747591150274,1.6084193,2487.2,2486.8,6.15032639]
[1747591150475,1.6084193,2487.1,2486.8,6.15032639]
[1747591150677,3.2078,2488.0,2487.0,5.73061017]
[1747591150879,3.00024509,2488.1,2488.0,5.73061017]
[1747591151077,3.75030636,2488.6,2488.3,11.76021017]
[1747591151278,3.75030636,2488.6,2488.5,0.80342]
[1747591151484,6.95810636,2488.6,2487.0,3.2078]
[1747591151682,3.2078,2488.4,2487.0,5.21753]
[1747591151881,3.2078,2488.4,2488.1,5.73061017]
[1747591152086,3.75030636,2488.6,2488.3,5.73061017]
[1747591152274,3.75030636,2488.6,2488.1,4.23097833]
[1747591152275,3.2078,2489.3,2488.1,4.23097833]
[1747591152481,3.2078,2490.3,2489.2,3.2078]
[1747591152681,3.2078,2490.6,2490.1,5.73061017]
[1747591152880,3.2078,2490.6,2490.4,5.73061017]
[1747591153190,3.97682166,2490.6,2490.1,0.099]
[1747591153384,3.97682166,2490.6,2489.1,11.49233021]
[1747591153385,8.2078,2490.6,2489.3,3.2078]
[1747591153586,0.67002166,2490.6,2489.9,0.0123126]
[1747591153787,3.2078,2490.8,2490.3,5.73061017]
[1747591153987,3.2078,2490.8,2490.5,5.73061017]
[1747591154187,3.2078,2490.8,2490.6,6.0224]
[1747591154381,3.2078,2490.8,2490.0,6.0232]
[1747591154584,3.2078,2490.8,2490.7,11.75381017]
[1747591154786,3.2078,2491.6,2490.8,0.80268]
[1747591155088,3.2078,2491.6,2491.0,5.73061017]
[1747591155285,3.2078,2491.1,2490.6,5.73061017]
[1747591155483,3.2078,2491.2,2490.6,5.73061017]
[1747591155785,3.2078,2491.2,2491.0,5.73061017]
[1747591155988,3.2078,2491.6,2491.1,6.379]
[1747591156185,36.82602166,2492.1,2491.3,0.0246252]
[1747591156395,3.2078,2491.4,2491.3,0.0246252]
[1747591156684,3.2078,2491.4,2491.3,3.52430537]
[1747591156889,3.2078,2491.4,2491.1,3.99507881]
[1747591157195,0.80273,2490.7,2490.0,4.1647]
[1747591157485,3.2078,2490.9,2490.6,5.73061017]
[1747591157687,3.2078,2490.9,2490.7,5.73061017]
[1747591157885,3.2078,2490.9,2490.7,9.25491554]
[1747591158091,3.2078,2491.0,2490.8,3.52430537]
[1747591158285,3.2078,2491.0,2490.0,4.1647]
[1747591158592,4.01046,2490.9,2490.3,5.73061017]
[1747591158788,3.2078,2490.4,2490.1,3.52430537]
[1747591158993,3.2078,2490.4,2490.2,3.52430537]
[1747591159186,3.2078,2490.4,2489.4,3.2078]
[1747591159387,3.2078,2490.7,2490.0,5.73061017]
[1747591159586,0.80277,2490.6,2490.0,5.73061017]
[1747591159789,3.2078,2490.7,2490.2,5.73061017]
[1747591159981,3.2078,2490.7,2490.3,6.4178]
[1747591160187,0.80276,2490.6,2490.3,6.4178]
[1747591160481,3.2078,2491.0,2490.5,5.73061017]
[1747591160692,0.67002166,2491.5,2490.6,6.4178]
[1747591160887,3.2078,2491.2,2490.6,9.94210537]
[1747591161087,3.2078,2490.9,2490.6,6.4178]
[1747591161390,3.2078,2490.7,2490.6,6.4178]
[1747591161587,0.80269,2490.8,2490.6,6.4178]
[1747591161788,3.2078,2490.7,2490.6,6.4178]
[1747591161987,3.2078,2490.7,2489.2,3.2078]
[1747591162189,3.058,2490.7,2490.4,5.73061017]
[1747591162389,3.058,2490.7,2490.5,6.353]
[1747591162688,3.058,2490.7,2490.5,9.74530537]
[1747591162890,3.058,2490.7,2490.6,3.52430537]
[1747591163197,3.2078,2490.9,2490.6,3.52430537]
[1747591163395,3.2078,2490.9,2490.5,6.221]
[1747591163698,6.01027896,2491.1,2490.6,9.25491554]
[1747591164099,5.20767896,2491.1,2490.7,9.25491554]
[1747591164398,1.60595129,2491.0,2490.7,9.25491554]
[1747591164592,1.60595129,2491.0,2490.3,2.89252988]
[1747591164904,3.2078,2490.7,2490.5,5.73061017]
[1747591165195,3.2078,2490.7,2490.4,5.73061017]
[1747591165396,1.60595129,2490.6,2490.4,5.73061017]
[1747591165597,1.60595129,2490.6,2489.5,3.2078]
[1747591165803,4.81375129,2490.6,2489.7,6.6308]
[1747591166093,1.60595129,2490.5,2490.4,6.53339017]
[1747591166396,1.60595129,2490.5,2489.1,4.1028]
[1747591166397,0.80302,2489.8,2489.3,3.2078]
[1747591166695,1.60595129,2490.5,2490.3,5.73061017]
[1747591166894,1.60595129,2490.5,2490.2,5.73061017]
[1747591167100,5.20767896,2491.1,2490.3,3.01591329]
[1747591167101,3.2078,2490.9,2490.3,3.01591329]
[1747591167292,3.2078,2490.9,2490.3,8.74652346]
[1747591167494,0.80271,2490.7,2490.3,8.74652346]
[1747591167693,4.01045,2490.9,2490.4,5.73061017]
[1747591167898,4.01046,2490.9,2490.6,5.73061017]
[1747591168093,3.2078,2490.9,2490.4,6.53340017]
[1747591168398,3.2078,2490.5,2490.3,5.73061017]
[1747591168787,3.87782166,2490.5,2489.6,0.80306]
[1747591168993,3.2078,2489.7,2488.3,0.80347]
[1747591169204,3.2078,2489.2,2488.9,4.87005017]
[1747591169391,3.2078,2489.3,2488.9,5.0]
[1747591169588,3.2078,2489.6,2489.4,4.87005017]
[1747591169795,3.2078,2489.6,2489.3,4.87005017]
[1747591169995,2.00694,2490.5,2489.5,4.87005017]
[1747591170194,0.80314,2489.4,2489.1,4.87005017]
[1747591170394,3.2078,2489.2,2489.0,4.87005017]
[1747591170600,0.80341,2488.6,2488.2,3.8664]
[1747591170897,4.01324,2490.9,2489.1,4.87005017]
[1747591171096,3.2078,2489.4,2489.2,0.80316]
[1747591171395,3.2078,2489.4,2489.3,12.40591017]
[1747591171595,3.2078,2490.0,2489.9,0.80297]
[1747591171796,0.60591226,2490.1,2489.9,8.07785017]
[1747591171996,0.60591226,2490.1,2490.0,12.40568017]
[1747591172393,0.60591226,2490.1,2490.0,17.40568017]
[1747591172999,0.60591226,2490.1,2490.0,16.60275017]
[1747591173198,0.60591226,2490.1,2490.0,17.40568017]
[1747591174002,0.60591226,2490.1,2488.5,36.149]
[1747591174003,0.60591226,2490.1,2489.3,3.2078]
[1747591174200,3.2078,2489.8,2489.0,3.2078]
[1747591174395,3.28319392,2490.1,2488.5,3.2078]
[1747591174396,0.08033096,2489.7,2488.5,3.2078]
[1747591174606,0.80317,2489.3,2489.0,2.23674833]
[1747591174897,3.2078,2489.6,2488.9,6.708]
[1747591175108,0.08033096,2489.7,2489.5,2.23674833]
[1747591175309,9.6e-07,2489.7,2489.6,9.74780833]
[1747591175519,3.66319356,2490.2,2489.6,8.94474833]
[1747591175805,3.66319356,2490.2,2488.8,36.147]
[1747591175806,2.00749,2489.9,2487.3,0.17400307]
[1747591175998,3.2078,2489.1,2487.3,11.92528]
[1747591176197,3.2078,2489.4,2489.2,0.17400307]
[1747591176498,4.01094,2489.4,2489.2,0.17400307]
[1747591176699,4.01094,2489.4,2488.7,6.2176]
[1747591176700,0.80332,2488.8,2488.7,6.2176]
[1747591176900,3.2078,2488.9,2488.7,6.2176]
[1747591177102,3.2078,2488.9,2487.3,3.2078]
[1747591177404,3.2078,2488.3,2487.9,6.2176]
[1747591177604,0.80343,2488.5,2488.3,0.17400307]
[1747591178007,3.2078,2488.6,2488.3,0.17400307]
[1747591178197,3.2078,2488.6,2487.9,6.2176]
[1747591178396,3.2078,2488.3,2487.9,6.2176]
[1747591178602,3.2078,2488.7,2488.6,0.80338]
[1747591178797,3.2078,2489.1,2488.9,0.17400307]
[1747591179004,3.2078,2489.4,2489.1,0.8032]
[1747591179299,3.2078,2489.7,2489.4,0.17400307]
[1747591179499,3.2078,2489.7,2489.6,0.17400307]
[1747591179705,3.2078,2489.7,2489.3,0.80314]
[1747591179903,3.2078,2489.7,2489.4,6.6691]
[1747591180105,0.80308,2489.6,2489.4,6.34006163]
[1747591180303,0.60591226,2489.5,2489.4,5.05944951]
[1747591180700,2.21265441,2489.5,2489.4,0.17400307]
[1747591181102,0.80319,2489.2,2488.3,3.2078]
[1747591181403,0.80336,2488.7,2488.5,0.17400307]
[1747591181707,3.2078,2488.6,2487.4,3.2078]
[1747591181894,3.2078,2488.6,2488.1,0.17400307]
[1747591181895,3.2078,2488.2,2488.1,0.17400307]
[1747591182099,3.2078,2488.2,2487.6,3.2078]
[1747591182406,9.8098,2488.6,2488.1,0.17400307]
[1747591182607,3.2078,2488.3,2488.2,0.17400307]
[1747591182800,6.602,2488.6,2488.3,0.17400307]
[1747591182997,4.01111,2488.9,2488.4,0.80343]
[1747591183211,3.2078,2488.9,2487.7,3.2078]
[1747591183400,3.2078,2488.9,2488.8,0.97732307]
[1747591183601,1.60716219,2488.9,2488.8,0.17400307]
[1747591183905,1.60716219,2488.9,2488.8,5.97732307]
[1747591184498,3.2078,2489.4,2489.2,0.80316]
[1747591184700,0.60591226,2489.9,2489.3,5.21571]
[1747591184901,0.80306,2489.6,2489.5,0.17400307]
[1747591185100,3.66319356,2489.3,2489.2,0.80319]
[1747591185499,3.66319356,2489.3,2488.7,5.21615]
[1747591185500,3.66319356,2489.3,2488.7,3.2078]
[1747591185699,3.2078,2489.1,2488.8,0.17400307]
[1747591185901,3.2078,2489.1,2488.4,3.2078]
[1747591186098,3.2078,2489.1,2487.8,2.0091]
[1747591186099,3.2078,2488.5,2487.9,3.2078]
[1747591186305,8.64397,2489.0,2488.5,0.17400307]
[1747591186499,8.64397,2489.0,2488.7,0.80334]
[1747591186500,7.8407,2489.0,2488.7,0.80334]
[1747591186697,4.6329,2489.0,2488.2,2.00878]
[1747591187007,3.058,2489.1,2488.9,0.17400307]
[1747591187201,6.87099356,2489.3,2488.9,0.97726307]
[1747591187398,3.2078,2489.0,2488.5,0.80342]
[1747591187603,2.97008305,2489.0,2488.5,0.17400307]
[1747591187804,2.97008305,2489.0,2488.7,0.17400307]
[1747591187805,6.17788305,2489.0,2488.7,0.17400307]
[1747591188108,6.98114305,2489.0,2488.6,0.97737307]
[1747591188402,6.98116305,2489.0,2488.5,0.8034]
[1747591188706,3.2078,2488.7,2487.1,3.2078]
[1747591188904,3.2078,2488.9,2488.5,0.17400307]
[1747591189209,4.01119,2488.6,2488.2,0.17400307]
[1747591189603,2.97008305,2489.0,2488.5,0.17400307]
[1747591189804,2.97008305,2489.0,2488.3,4.6706]
[1747591190008,2.97008305,2489.0,2487.7,2.00916]
[1747591190009,3.2078,2488.5,2488.1,0.17400307]
[1747591190204,3.2078,2488.2,2487.7,0.17400307]
[1747591190413,0.80356,2488.1,2487.7,0.17400307]
[1747591190613,4.9334,2488.1,2487.8,0.80363]
[1747591190801,3.2078,2488.2,2487.9,0.97760307]
[1747591191004,3.2078,2488.2,2487.5,0.17400307]
[1747591191211,3.2078,2487.7,2486.8,4.6706]
[1747591191508,3.2078,2487.7,2487.4,0.80375]
[1747591191809,3.2078,2488.4,2487.5,3.2078]
[1747591192007,2.97008305,2488.9,2488.8,0.80332]
[1747591192210,2.12528305,2488.9,2488.8,0.97732307]
[1747591192408,3.05e-06,2488.9,2488.8,5.97732307]
[1747591192612,2.04182356,2489.3,2489.2,0.97719307]
[1747591192809,1.76380965,2489.8,2489.7,0.80303]
[1747591193005,1.25332716,2490.4,2490.3,0.80284]
[1747591193211,3.2078,2490.4,2489.7,3.2078]
[1747591193403,4.5543,2490.6,2490.0,3.2078]
[1747591193713,4.5543,2490.6,2490.3,0.80282]
[1747591193914,4.5543,2490.6,2489.8,3.2078]
[1747591194410,3.2078,2490.8,2490.0,3.2078]
[1747591194615,3.2078,2490.2,2489.2,3.2078]
[1747591194805,3.2078,2490.5,2489.5,3.2078]
[1747591195114,4.984,2490.4,2489.5,3.2078]
[1747591195609,3.2078,2490.8,2489.7,3.2078]
[1747591195814,2.7078,2490.8,2490.0,3.2078]
[1747591196014,4.984,2490.7,2490.4,0.8028]
[1747591196318,4.984,2490.7,2490.0,3.2078]
[1747591196501,1.23873846,2490.6,2490.5,0.80275]
[1747591197904,2.70288716,2490.6,2490.5,5.60495]
[1747591198110,1.78234716,2490.6,2490.5,5.60495]
[1747591198318,0.75668716,2490.6,2490.5,5.60495]
[1747591198516,7.16e-06,2490.6,2490.5,10.60495]
[1747591199113,7.16e-06,2490.6,2490.5,5.60495]
[1747591199808,0.08673509,2490.7,2490.6,0.80274]
[1747591201112,5.09e-06,2490.7,2490.6,0.80274]
[1747591201711,5.09e-06,2490.7,2490.5,5.79016]
[1747591201909,5.09e-06,2490.7,2490.4,3.2078]
[1747591201910,5.09e-06,2490.7,2490.6,0.80274]
[1747591202419,4.75020509,2490.7,2490.6,0.80274]
[1747591202613,5.09e-06,2490.7,2490.3,3.2078]
[1747591202814,5.09e-06,2490.7,2490.1,4.9874]
[1747591202815,3.2078,2490.6,2490.1,0.80289]
[1747591203113,1.4847839,2490.7,2490.6,0.80274]
[1747591203513,6.3449839,2490.7,2489.7,3.2078]
[1747591203715,4.7502,2490.6,2489.7,3.2078]
[1747591203918,4.7502,2490.6,2490.2,0.80284]
[1747591204112,4.7502,2490.6,2489.8,2.0075]
[1747591204113,7.958,2490.6,2490.0,0.80291]
[1747591204312,3.2078,2490.3,2485.5,40.21889]
[1747591204515,3.2078,2489.4,2488.6,2.00847]
[1747591204712,3.2078,2489.4,2489.3,0.80316]
[1747591204920,3.2078,2489.8,2489.7,0.80303]
[1747591205112,4.7661,2490.2,2490.1,0.8029]
[1747591205416,3.2078,2490.6,2490.4,0.8028]
[1747591205610,1.3449839,2490.7,2490.6,0.80274]
[1747591206015,0.80274,2490.6,2489.7,3.2078]
[1747591206213,3.2078,2490.4,2489.7,3.2078]
[1747591206414,3.2078,2490.0,2489.2,3.2078]
[1747591206616,7.9739,2490.3,2489.2,7.7176]
[1747591206815,1.92976263,2490.1,2489.7,3.2078]
[1747591207014,1.92976263,2490.1,2490.0,0.80293]
[1747591207214,1.92976263,2490.1,2489.2,3.2078]
[1747591207215,0.80306,2489.6,2489.2,3.2078]
[1747591207415,0.80337,2488.7,2485.9,40.21226]
[1747591207621,3.2078,2488.6,2487.2,3.2078]
[1747591207810,3.2078,2488.3,2487.4,2.00942]
[1747591208118,4.6127,2488.6,2487.9,3.2078]
[1747591208325,4.6127,2488.6,2488.0,4.9004]
[1747591208625,2.22717586,2488.8,2488.7,0.80335]
[1747591208923,0.72767697,2489.1,2489.0,0.80325]
[1747591209121,0.96767263,2490.1,2490.0,0.80293]
[1747591209323,5.71e-06,2490.3,2490.2,0.80287]
[1747591210025,5.71e-06,2490.3,2490.2,5.80287]
[1747591210522,3.2078,2491.1,2490.2,5.0]
[1747591210723,3.2078,2491.1,2490.5,3.2078]
[1747591210917,3.2078,2491.1,2490.2,2.00716]
[1747591210918,3.2078,2490.7,2489.9,3.2078]
[1747591211118,0.80269,2490.8,2489.9,3.2078]
[1747591211322,3.70688311,2491.5,2490.3,3.2078]
[1747591211520,5.6645,2491.4,2490.6,3.2078]
[1747591211724,0.80252,2491.3,2490.9,0.80262]
[1747591211922,3.2078,2491.0,2490.0,3.2078]
[1747591212229,8.0698,2490.9,2490.3,3.2078]
[1747591212525,4.862,2490.9,2490.8,0.80267]
[1747591212714,4.862,2490.9,2490.6,0.80272]
[1747591212920,0.80275,2490.6,2490.2,0.80285]
[1747591213127,4.01049,2490.8,2490.4,0.80278]
[1747591213423,3.2078,2491.3,2490.4,3.2078]
[1747591213723,0.80255,2491.2,2490.5,4.1081]
[1747591213924,0.80255,2491.2,2490.3,3.2078]
[1747591213925,4.1939,2491.2,2490.3,3.2078]
[1747591214221,4.1939,2491.2,2491.1,0.80258]
[1747591215425,5.18963636,2491.9,2491.4,0.80248]
[1747591215725,3.39242636,2491.9,2491.8,0.80235]
[1747591215923,11.71485712,2492.9,2492.4,0.80216]
[1747591215924,4.79777222,2492.5,2492.4,0.80216]
[1747591216222,8.91802712,2492.9,2492.8,0.80203]
[1747591216428,2.52994312,2493.3,2493.2,0.8019]
[1747591216624,3.2078,2494.4,2493.5,0.8018]
[1747591216826,5.78287797,2493.6,2493.5,4.0096]
[1747591217020,8.9e-06,2493.9,2493.8,0.80171]
[1747591217331,13.05227003,2494.6,2494.5,0.80148]
[1747591217520,13.05227003,2494.6,2494.4,40.481]
[1747591217820,3.2078,2495.0,2494.1,3.2078]
[1747591218022,4.00907,2495.2,2494.1,3.2078]
[1747591218220,4.2949,2495.0,2494.1,3.2078]
[1747591218420,4.2949,2495.0,2494.6,0.80145]
[1747591218623,4.2949,2495.0,2494.5,3.2078]
[1747591218814,5.09622,2495.0,2494.6,0.80145]
[1747591219022,0.80136,2494.9,2494.5,3.2078]
[1747591219219,4.2949,2495.0,2494.5,3.2078]
[1747591219428,4.2949,2495.0,2494.1,3.2078]
[1747591219628,4.124,2494.6,2494.1,3.2078]
[1747591219825,3.2078,2495.6,2494.3,3.2078]
[1747591220026,3.2078,2495.6,2493.7,2.00428]
[1747591220027,4.9252,2495.4,2494.8,0.80136]
[1747591220228,1.20251969,2495.3,2494.6,4.2309]
[1747591220426,1.20251969,2495.3,2495.0,3.2078]